Cogmind - Beta 13 @@@ ROGUE MODE // 2024.04.11 @ 13:44:35 Player: N00Bk1llr Result: Destroyed by D-53 Grenadier with Mini Grenade Launcher Performance ------------- Evolutions (0) 0 Regions Visited (2) 400 Robots Destroyed (18) 90 Value Destroyed (495) 495 Prototype IDs (2) 40 Alien Tech Used (0) 0 Bonus (0) 0 TOTAL SCORE: 1025 Bonus ------- None Cogmind --------- Core Integrity 0/250 Matter 214/300 Energy 58/100 System Corruption 0% Temperature Cool (0) Movement Core (750) Ox14 Location -10/Mines Parts ------- > --- POWER (1) -------- (None) > --- PROPULSION (2) --- (None) > --- UTILITY (2) ------ High-capacity Storage Unit Structural Scanner > --- WEAPON (2) ------- EM Shotgun > --- INVENTORY (20) --- Light Nuclear Core Improved Heat Sink Sensor Array Signal Interpreter ECM Suite Hacking Suite Hacking Suite Rocket Launcher Rocket Launcher Rocket Launcher Rocket Launcher Mining Claw Peak State ------------ > --- POWER ------------ Light Ion Engine > --- PROPULSION ------- Aluminum Leg Wheel > --- UTILITY ---------- High-capacity Storage Unit Structural Scanner > --- WEAPON ----------- EM Shotgun Assault Rifle > --- INVENTORY -------- Ion Engine Light Nuclear Core Improved Heat Sink Sensor Array ECM Suite Hacking Suite Hacking Suite EM Shotgun Beam Cannon Rocket Launcher Rocket Launcher Rocket Launcher Rocket Launcher [Rating: 10] Favorites ----------- Power Light Ion Engine Engine Light Ion Engine Propulsion Light Treads Treads Light Treads Leg Aluminum Leg Wheel Wheel Utility High-capacity Storage Unit Device Structural Scanner Storage High-capacity Storage Unit Weapon Assault Rifle Energy Gun EM Shotgun Energy Cannon Beam Cannon Ballistic Gun Assault Rifle Launcher Rocket Launcher Build | -11 -10 -10 ------- Run | Yrd Mat Min Slots Evolved . | . . . Power . | . . . Propulsion . | . . . Utility . | . . . Weapon . | . . . Parts Attached 23 | 6 10 7 Power 3 | 1 1 1 Engine 3 | 1 1 1 Core . | . . . Reactor . | . . . Propulsion 4 | 2 2 . Treads 2 | 2 . . Leg 1 | . 1 . Wheel 1 | . 1 . Hover . | . . . Flight . | . . . Utility 4 | 1 3 . Device 1 | . 1 . Storage 3 | 1 2 . Processor . | . . . Hackware . | . . . Protection . | . . . Artifact . | . . . Weapon 12 | 2 4 6 Energy Gun 7 | 1 4 2 Energy Cannon 1 | . . 1 Ballistic Gun 2 | 1 . 1 Ballistic Cannon . | . . . Launcher 2 | . . 2 Special Weapon . | . . . Impact Weapon . | . . . Slashing Weapon . | . . . Piercing Weapon . | . . . Special Melee Weapon . | . . . Unidentified Prototypes . | . . . Parts Lost 13 | . 6 7 Power 3 | . 1 2 Propulsion 4 | . 2 2 Utility . | . . . Weapon 6 | . 3 3 Highest Loss Streak 5 | . 4 5 To Critical Strikes . | . . . Average Slot Usage (%) 85 | . 85 85 Engine 13 | . 14 12 Treads 17 | . 21 . Leg 4 | . 2 14 Wheel 2 | . 2 2 Device 4 | . 1 14 Storage 14 | . 14 14 Energy Gun 13 | . 13 12 Ballistic Gun 14 | . 14 14 Naked Turns . | . . . Heaviest Build 49 | 12 49 49 Greatest Support 40 | 40 40 10 Greatest Overweight (x) 14 | . 14 4 Average Overweight (x) 1 | . 1 4 Largest Inventory Capacity 20 | 8 20 20 Average Capacity 18 | 7 19 20 Most Carried 15 | 2 15 14 Average Carried 9 | 1 9 13 Final Capacity 20 | 8 20 20 Final Carried 14 | 2 14 12 Class Distribution -------------------- 100% | Mutant Dominant Class ---------------- Mutant | -10/Materials Mutant | -10/Mines Resources | -11 -10 -10 ----------- Run | Yrd Mat Min Matter Collected 481 | 176 291 14 Remotely . | . . . Salvage Created 576 | . 513 63 Parts 47 | . 39 8 Haulers Intercepted . | . . . Recyclers Shooed . | . . . Parts Field Recycled . | . . . Retrieved Matter . | . . . Parts Self-Destructed . | . . . Prevented . | . . . Kills | -11 -10 -10 ------- Run | Yrd Mat Min Combat Hostiles Destroyed 20 | . 12 8 Guns 13 | . 12 1 AOE 7 | . . 7 Classes Destroyed 7 | . 5 2 Worker 2 | . 1 1 Operator 2 | . 2 . Watcher 1 | . 1 . Swarmer 3 | . 3 . Grunt 9 | . 9 . Demolisher 1 | . . 1 Assembled 7 | . . 7 Best Kill Streak 8 | . 4 8 Combat Bots Only 7 | . 4 7 Max Kills in Single Turn 7 | . 1 7 Gunslinging . | . . . Exploded 6 | . . 6 Melee . | . . . Uniques/NPCs Destroyed . | . . . Combat | -11 -10 -10 -------- Run | Yrd Mat Min Hostile Shots Fired 75 | . 57 18 Missed 17 | . 16 1 Damage Taken 1301 | . 621 680 Core 261 | . 60 201 Absorbed by Shields . | . . . Core Remaining (%) 100 | 100 . . Volleys Fired 55 | . 49 6 Largest 2 | . 2 2 Hottest 80 | . 65 80 Shots Fired 107 | . 97 10 Gun 102 | . 97 5 Cannon 1 | . . 1 Launcher 4 | . . 4 Special . | . . . Kinetic 52 | . 49 3 Thermal 1 | . . 1 Explosive 4 | . . 4 Electromagnetic 50 | . 48 2 Robot Hit Streak 19 | . 19 3 Robot Miss Streak 7 | . 7 4 Penetration Max . | . . . Secondary Targets 3 | . 3 . Max Gunslinging Chain 1 | . 1 . Shots Hit Robots 75 | . 70 5 Core Hits 43 | . 29 14 Critical Kills . | . . . Critical Parts Destroyed . | . . . Critical Strikes . | . . . Melee Attacks . | . . . Impact . | . . . Slashing . | . . . Piercing . | . . . Sneak Attacks . | . . . Combat Hostiles . | . . . Follow-up Attacks . | . . . Damage Inflicted 1421 | . 885 536 Guns 815 | . 786 29 Cannons 18 | . . 18 Explosions 574 | . 85 489 Melee . | . . . Ramming 14 | . 14 . Kinetic 328 | . 313 15 Thermal 103 | . 85 18 Explosive 489 | . . 489 Electromagnetic 487 | . 473 14 Impact . | . . . Slashing . | . . . Piercing . | . . . Highest Corruption . | . . . Average Corruption . | . . . Corruption Purged . | . . . Corruption Blocked . | . . . Overload Shots . | . . . Overflow Damage 153 | . 122 31 Projectiles . | . . . Explosions 153 | . 122 31 Melee . | . . . Knockbacks . | . . . Impact . | . . . Kinetic . | . . . Secondary . | . . . Self-Inflicted Damage 252 | . 169 83 Shots 5 | . 3 2 Rammed 4 | . 4 . Targets Rammed 4 | . 4 . Kicked . | . . . Crushed . | . . . Highest Temperature 96 | . 96 18 Average Temperature 33 | . 34 4 Received Heat Transfer 241 | . 201 40 Siege Activations . | . . . Robots Corrupted . | . . . Combat Hostiles . | . . . Parts Fried 1 | . 1 . Impact Corruptions . | . . . Robots Melted . | . . . Combat Hostiles . | . . . Parts Melted . | . . . Heat Transferred 187 | . 150 37 Parts Sabotaged . | . . . Parts Stolen . | . . . Parts Stripped . | . . . Power Chain Reactions 2 | . 2 . Alert | -11 -10 -10 ------- Run | Yrd Mat Min Peak Influence 283 | . 283 73 Initial 51 | . . 51 Average 79 | . 88 68 Maximum Alert Level 1 | . 1 . Low Security (%) 90 | 100 87 100 Level 1 9 | . 12 . Level 2 . | . . . Level 3 . | . . . Level 4 . | . . . Level 5 . | . . . High Security . | . . . Max Security . | . . . Squads Dispatched 3 | . 3 . Investigation 2 | . 2 . Extermination . | . . . Reinforcement 1 | . 1 . Assault . | . . . Garrison . | . . . Intercept . | . . . Searches Triggered . | . . . Construction Impeded . | . . . Haulers Reinforced . | . . . Active Scanning Responses . | . . . Cargo Convoy Interrupts . | . . . Stealth | -11 -10 -10 --------- Run | Yrd Mat Min Distress Signals . | . . . Communications Jammed . | . . . Distress Signals . | . . . Times Spotted 31 | . 22 9 Peak Tracking Total 7 | . 6 7 Tactical Retreats . | . . . Traps | -11 -10 -10 ------- Run | Yrd Mat Min Traps Triggered . | . . . Indirectly . | . . . Trap Hack Attempts . | . . . Triggered . | . . . Disarmed . | . . . Reprogrammed . | . . . Reused . | . . . Traps Extracted . | . . . Installed . | . . . Triggered 1 | . 1 . Machines | -11 -10 -10 ---------- Run | Yrd Mat Min Machines Disabled 4 | . 4 . Max in Single Turn 2 | . 2 . Machines Repaired . | . . . Machines Dismantled . | . . . Machines Sabotaged . | . . . Overloaded Fab Kills . | . . . Hacking | -11 -10 -10 --------- Run | Yrd Mat Min Machines Accessed 4 | . 4 . Terminals 4 | . 4 . Fabricators . | . . . Repair Stations . | . . . Recycling Units . | . . . Scanalyzers . | . . . Garrison Access . | . . . Total Hacks 11 | . 11 . Successful 6 | . 6 . Failed 5 | . 5 . Catastrophic 2 | . 2 . Database Lockouts . | . . . Manual 3 | . 3 . Terminals 11 | . 11 . Fabricators . | . . . Repair Stations . | . . . Recycling Units . | . . . Scanalyzers . | . . . Garrison Access . | . . . Terminal Hacks 6 | . 6 . Prototype ID Bank 1 | . 1 . Branch Access Points 1 | . 1 . Locate Traps 1 | . 1 . Surveillance Status 1 | . 1 . Hauler Manifests 1 | . 1 . Zone Layout 1 | . 1 . Fabricator Hacks . | . . . Repair Station Hacks . | . . . Recycling Unit Hacks . | . . . Scanalyzer . | . . . Garrison Access Hacks . | . . . Unauthorized Hacks . | . . . Terminals . | . . . Fabricators . | . . . Repair Stations . | . . . Recycling Units . | . . . Scanalyzers . | . . . Garrison Access . | . . . Data Cores Recovered 1 | . 1 . Used . | . . . Hacking Detections 3 | . 3 . Full Trace Events . | . . . Feedback Events . | . . . Feedback Blocked . | . . . Robot Schematics Acquired . | . . . Robots Built . | . . . Authchips . | . . . Time . | . . . Total Robot Build Rating . | . . . Part Schematics Acquired . | . . . Parts Built . | . . . Authchips . | . . . Time . | . . . Total Part Build Rating . | . . . Parts Repaired . | . . . Time . | . . . Parts Recycled . | . . . Recycled Matter . | . . . Retrieved Matter . | . . . Retrieved Components . | . . . Parts Scanalyzed . | . . . Part Schematics Acquired . | . . . Parts Damaged . | . . . Bothacking | -11 -10 -10 ------------ Run | Yrd Mat Min Used RIF Installer . | . . . Robots Hacked . | . . . Non-combat . | . . . Combat . | . . . Robot Hacks Applied . | . . . Relay Couplers Released . | . . . Fabnet Peak Effective % . | . . . Robots Rewired . | . . . Allies Hacked . | . . . Hacks Repelled . | . . . Allies | -11 -10 -10 -------- Run | Yrd Mat Min Total Allies . | . . . Largest Group . | . . . Highest-Rated Group . | . . . Highest-Rated Ally . | . . . Total Orders . | . . . Ally Attacks . | . . . Total Damage . | . . . Kills . | . . . Allies Corrupted . | . . . Allies Melted . | . . . Intel | -11 -10 -10 ------- Run | Yrd Mat Min Robot Analysis Total . | . . . Derelict Logs Recovered . | . . . Drone Launches . | . . . Drone Recoveries . | . . . Exploration | -11 -10 -10 ------------- Run | Yrd Mat Min Turns Passed 1158 | 73 883 202 Spaces Moved 434 | 42 334 58 Core 6 | 4 2 . Treads 269 | 38 231 . Legs 37 | . . 37 Wheels 122 | . 101 21 Hover . | . . . Flight . | . . . Fastest Speed 50 | 50 140 140 Average Speed 213 | 149 205 305 Slowest Speed 750 | 160 750 400 Overloaded Moves . | . . . Propulsion Burnouts . | . . . Robots Hopped . | . . . Cave-ins Triggered . | . . . Exploration Rate (%) 24 | 4 53 16 Regions Visited 2 Branch Regions 1 Pre-discovered Areas . | . . . Known Exits Taken 1 | . 1 . Unknown Exits Taken 1 | 1 . . Scrap Searched . | . . . Spaces Dug . | . . . Terrain Destroyed 111 | . 63 48 Melee . | . . . Projectile . | . . . AOE 111 | . 63 48 Terrain Rammed . | . . . Walls Destroyed . | . . . Machines Disabled . | . . . Actions | -11 -10 -10 --------- Run | Yrd Mat Min Total 548 | 49 428 71 Wait 10 | . 10 . Move 432 | 41 333 58 Hop . | . . . Pick Up 19 | 2 17 . Fast Attach 13 | 6 6 1 Attach 6 | . 4 2 Detach 1 | . 1 . Swap 4 | . . 4 Drop 4 | . 4 . Fire 55 | . 49 6 Melee . | . . . Ram . | . . . Kick . | . . . Crush 4 | . 4 . Escape Stasis . | . . . Rewire . | . . . Trap . | . . . Miscellaneous . | . . . Route ------- -11/Scrapyard -10/Materials (discovered 2 exits: [*Mat] / *Min) -10/Mines History --------- Turn | Location | Event 43 | -11/Scrapyard | Discovered new exit (range 16) 74 | -11/Scrapyard | Entered Materials 259 | -10/Materials | Identified exit to Mines 302 | -10/Materials | Build established: Mutant 794 | -10/Materials | Lost 4 parts (1p2n1w) 813 | -10/Materials | Discovered new exit (range 10) 957 | -10/Materials | Entered Mines 958 | -10/Mines | Assembled infested the area 994 | -10/Mines | Core integrity fell below 50% 1017 | -10/Mines | Destroyed 7 combat bots 1157 | -10/Mines | Core integrity fell below 20% 1159 | -10/Mines | Destroyed by D-53 Grenadier with Mini Grenade Launcher Last Messages --------------- 00993_ K-01 Serf destroyed. 00993_ as-95518 destroyed. 00993_ Wheel destroyed. 00993_ Destroyed Wheel. 00993_ as-84707 destroyed. 00993_ as-75924 destroyed. 00993_ as-68667 destroyed. 00996_ as-84967 destroyed. 01006_ Acquired Lgt. Ion Engine. 01015_ The unstable cave ceiling collapses. 01103_ Extracted 14 matter. 01129_ The unstable cave ceiling collapses. 01148_ EM Shotgun destroyed. 01151_ Lgt. Ion Engine destroyed. 01153_ The unstable cave ceiling collapses. 01155_ Aluminum Leg destroyed. 01155_ Beam Cannon destroyed. 01156_ Assault Rifle destroyed. 01157_ The unstable cave ceiling collapses. 01158_ D-53 Grenadier destroyed. Map ----- +----------------------------------------------------+ | ?????????????????????????????????????????????????? | | ?????????????????????????????????????????????????? | | ?????????????????????????????????????????????????? | | ?????????????????????????????????????????????????? | | ?????????????????????????????????????????????????? | | ?????????????????????????????????????????????????? | | ?????????????????????????????????????????????????? | | ?????????????????????????????????????????????????? | | ?????????????????????????????????????????????????? | | ???????????????????????? ##?????????????????????? | | ????????????????????### ## ?????????????????????? | | ???????????????????? ## ???????????????????? | | ??????????????????? ???????????????????? | | ??????????????????? ???????????????????? | | ??????????????????? ????????????????????? | | ???????????????????? ???? ############?? | | ???????????????????? #??################## | | ?????????????????????< ###?## ## | | ????????????????????? d ###### ## | | ???????????? ???????# != ##### """ """ """ ## | | ????????????? ????###%! #### """ """ """ ## | | ??????????? ? ###]= #### """ """ """ ## | | ???????????? # ## #### ## | | ????????????????! #### """ """ ## | | ????????????????## # ##### """ """ ## | | ?????????? @ #### """ """ ## | | ???????????????? #### #### ## | | ????????????????##### # ##### """ """ """ ## | | ???????????????????## # ## """ """ """ ## | | ???????????????????## # # """ """ """ ## | | ???????????????????### ## # ## | | ???????????????????#### ! ## | | ????????????????????### ############### | | ?????????????????????####### ################# | | ?????????????????????##### ## #####????????????? | | ????????????????????????###########??????????????? | | ????????????????????????##########???????????????? | | ?????????????????????????????????????????????????? | | ?????????????????????????????????????????????????? | | | | | | | | | | | | | | | | | | | | | | | +----------------------------------------------------+ Best States ------------- Heat Dissipation 25 Energy Generation 10 Energy Capacity 125 Matter Stores 300 Matter Capacity 300 Sight Range 16 Terrain Scan Density 10 Evasion (%) 40 Recoil Reduction 2 Item Schematics ----------------- None Robot Schematics ------------------ None Fabricated ------------ Nothing Alien Tech Used ----------------- None Achievements -------------- None Challenges ------------ None Game ------ Seed AlloyPrecisionClaws Manual? 0 Play Time 00:09:12 Cumulative 40.3 hours Start 2024.04.10 @ 18:06:04 End 2024.04.11 @ 13:44:35 Sessions 2 Manual Loads 0 Difficulty Rogue Special Mode None Game No. 73 Rogue 51 Adventurer 22 Explorer 0 Win Type - Total 1 Types 1/0/0/0/0/0/0/0/0 Lore% 26 Gallery% 42 Achievement% 39 Wizard Run 0 Options --------- Layout 2 ASCII 0 Keyboard 1 Movement Numpad Keybinds 0 Fullscreen 2 Font 24/Smallcaps Map View 50x44 Zoom Use 0% Tactical HUD 1 Map Filters NONE Filters NONE Steam 1 RUN: 2fbefdbc-5930-4ad7-a843-d33931ff8643